bitfinex-derivatives/quotes_SOLF0:USTF0_20250206
["timestamp","ask_amount","ask_price","bid_price","bid_amount"]
[1738861675956,19.03725035,190.46,190.44,0.0389325]
[1738861676161,24.28655035,190.46,190.44,0.0389325]
[1738861676462,5.2493,190.46,190.44,0.0389325]
[1738861676657,5.2491,190.46,190.44,0.0389325]
[1738861676862,5.2491,190.46,190.42,5.2501]
[1738861678061,5.2491,190.46,190.42,5.28461668]
[1738861678462,1.5344,190.47,190.42,0.03451668]
[1738861678963,19.03725035,190.46,190.42,0.03451668]
[1738861679262,5.2494,190.45,190.42,0.03451668]
[1738861679463,19.03725035,190.46,190.42,0.03451668]
[1738861679958,5.2494,190.45,190.42,0.03451668]
[1738861680263,1.5344,190.47,190.44,5.2494]
[1738861680563,1.5344,190.47,190.42,0.03451668]
[1738861680764,0.03390519,190.48,190.42,0.03451668]
[1738861681064,0.03390519,190.48,190.47,5.2488]
[1738861681862,19.07115554,190.48,190.42,0.03451668]
[1738861682063,0.03390519,190.48,190.42,0.03451668]
[1738861683665,0.03390519,190.48,190.47,5.2488]
[1738861684374,5.19e-06,190.48,190.47,5.2488]
[1738861684575,1.5258,190.54,190.47,19.03725035]
[1738861684970,4.28,190.63,190.51,5.2475]
[1738861685170,19.03725035,190.61,190.44,19.03725035]
[1738861685370,19.03725035,190.58,190.41,19.03725035]
[1738861685569,5.2469,190.54,190.49,5.248]
[1738861685770,5.2469,190.54,190.38,197.28]
[1738861685771,0.03428359,190.51,190.48,0.03612025]
[1738861685971,1.5961,190.54,190.38,216.31725035]
[1738861686167,1.5961,190.54,190.48,0.0376347]
[1738861686474,0.03682933,190.51,190.38,216.31725035]
[1738861686674,1.5961,190.54,190.5,5.248]
[1738861686880,0.03619314,190.46,190.43,0.0386004]
[1738861687070,1.5961,190.54,190.38,19.03725035]
[1738861687379,0.03347685,190.46,190.43,0.03416803]
[1738861687674,1.5961,190.54,190.43,0.03416803]
[1738861687879,5.2481,190.5,190.43,0.03416803]
[1738861688174,5.28452991,190.5,190.43,0.03416803]
[1738861688582,5.28452991,190.5,190.46,5.2489]
[1738861688781,0.03642991,190.5,190.43,0.03416803]
[1738861689875,0.03642991,190.5,190.48,5.2483]
[1738861690582,0.03642991,190.5,190.47,0.03892377]
[1738861690874,2.991e-05,190.5,190.49,5.2483]
[1738861691074,2.991e-05,190.5,190.47,0.03892377]
[1738861691680,5.24802991,190.5,190.47,5.28772377]
[1738861692378,5.2483,190.49,190.47,0.03892377]
[1738861692580,19.03728026,190.5,190.35,19.03725035]
[1738861692783,19.03725035,190.5,190.34,90.81078444]
[1738861693080,5.2477,190.52,190.41,19.03725035]
[1738861693282,19.03725035,190.58,190.41,19.03725035]
[1738861693483,190.3296,190.65,190.47,19.03725035]
[1738861693484,19.03725035,190.61,190.47,19.03725035]
[1738861693679,1.073e-05,190.51,190.48,0.03768349]
[1738861693881,23.31725035,190.64,190.47,19.03725035]
[1738861694382,3.1726,190.65,190.5,19.03725035]
[1738861694579,3.1726,190.65,190.56,5.2462]
[1738861694885,3.1726,190.65,190.59,0.03658423]
[1738861694886,28.9018753,190.62,190.59,0.03658423]
[1738861695484,28.9018753,190.62,190.61,5.2447]
[1738861695683,28.9018753,190.62,190.59,0.03658423]
[1738861697481,28.9018753,190.62,190.61,5.245]
[1738861697676,30.4288753,190.62,190.61,5.245]
[1738861697880,30.4288753,190.62,190.59,0.03658423]
[1738861698386,1.56151189,190.62,190.59,0.03658423]
[1738861698987,19.03725035,190.61,190.59,0.03658423]
[1738861699385,1.56151189,190.62,190.59,0.03658423]
[1738861700690,1.56151189,190.62,190.61,5.245]
[1738861701390,1.56151189,190.62,190.59,0.03658423]
[1738861701988,5.2452,190.6,190.59,0.03658423]
[1738861702183,1.189e-05,190.62,190.59,0.03658423]
[1738861702382,1.5704,190.65,190.59,0.03658423]
[1738861702591,1.5597,190.7,190.59,19.07383458]
[1738861702792,1.5597,190.7,190.59,19.03725035]
[1738861703491,0.03538542,190.66,190.63,0.03563419]
[1738861704794,0.03538542,190.66,190.65,5.2439]
[1738861706794,8.542e-05,190.66,190.65,24.28115035]
[1738861707095,1.622,190.8,190.65,19.03725035]
[1738861707489,5.2403,190.78,190.69,5.2426]
[1738861707690,1.622,190.8,190.65,19.03725035]
[1738861707991,5.2408,190.77,190.69,5.2426]
[1738861708293,1.622,190.8,190.59,13.11]
[1738861708294,19.03725035,190.73,190.71,0.03680062]
[1738861708490,5.243,190.69,190.65,5.2438]
[1738861709198,19.03725035,190.73,190.59,13.11]
[1738861709495,20.57865035,190.76,190.6,19.03725035]
[1738861709693,5.2416,190.74,190.69,5.2425]
[1738861709987,0.03933919,190.7,190.6,19.03725035]
[1738861710387,0.03933919,190.7,190.63,0.03363335]
[1738861710889,0.03933919,190.7,190.68,5.2428]
[1738861711090,0.03933919,190.7,190.59,13.11]
[1738861711286,3.919e-05,190.7,190.67,0.03793901]
[1738861711492,3.919e-05,190.7,190.63,19.03725035]
[1738861712190,3.919e-05,190.7,190.69,5.2428]
[1738861717394,1.6039,190.84,190.69,5.2428]
[1738861717395,1.6039,190.84,190.69,19.03725035]
[1738861717699,1.5241,190.85,190.75,19.03725035]
[1738861718089,1.5241,190.85,190.84,5.2386]
[1738861718286,6.9138,190.88,190.75,19.03725035]
[1738861718287,1.6763,190.88,190.75,19.03725035]
[1738861718491,0.03100365,190.83,190.76,1.5741]
[1738861718788,0.03100365,190.83,190.82,5.2392]
[1738861719092,0.03100365,190.83,190.8,0.03825677]
[1738861719300,0.03100365,190.83,190.81,5.2395]
[1738861719891,0.03100365,190.83,190.8,0.03825677]
[1738861720493,19.068254,190.83,190.64,10.4882]
[1738861720693,192.0059,190.88,190.73,19.03725035]
[1738861720898,1.5845,190.91,190.76,19.03725035]
[1738861721197,190.3296,190.96,190.91,5.2365]
[1738861721198,1.6264,190.96,190.91,5.2365]
[1738861721697,0.03713354,190.94,190.91,5.2365]
[1738861722095,0.03713354,190.94,190.92,5.2363]
[1738861722294,0.03713354,190.94,190.9,0.03401048]
[1738861722693,0.03713354,190.94,190.93,5.2362]
[1738861723298,3.354e-05,190.94,190.93,5.2362]
[1738861724605,5.2313,191.11,191.04,5.2331]
[1738861724797,5.246,191.12,191.03,19.03725035]
[1738861725293,1.6708,191.13,191.03,19.03725035]
[1738861725793,0.03142666,191.1,191.06,5.27120153]
[1738861725993,0.03142666,191.1,191.06,0.03860153]
[1738861729606,19.03725035,191.08,191.06,0.03860153]
[1738861729902,19.03725035,191.08,190.93,3.0796]
[1738861730107,19.03725035,191.05,190.93,3.0796]
[1738861730303,19.03725035,191.05,190.96,5.2353]
[1738861730511,19.03725035,191.05,190.93,3.0796]
[1738861731007,0.03531751,191.01,190.97,0.03656725]
[1738861731504,0.03531751,191.01,190.97,13.12656725]
[1738861732300,0.03531751,191.01,190.97,18.36156725]
[1738861732504,0.03531751,191.01,190.97,13.12656725]
[1738861732900,0.03531751,191.01,190.97,18.36156725]
[1738861733107,0.03531751,191.01,190.97,13.12656725]
[1738861734008,0.03531751,191.01,190.99,5.2342]
[1738861734209,0.03531751,191.01,190.97,13.12656725]
[1738861734509,19.07256786,191.01,190.97,13.12656725]
[1738861734904,23.33256786,191.01,190.97,13.12656725]
[1738861735101,5.2343,191.0,190.97,13.12656725]
[1738861735308,23.33256786,191.01,190.97,13.12656725]
[1738861735504,4.29531751,191.01,190.97,13.12656725]
[1738861735712,5.2348,190.99,190.97,13.12656725]
[1738861736512,5.2348,190.98,190.97,13.12656725]
[1738861737515,0.03531751,191.01,190.97,13.12656725]
[1738861739012,5.2345,191.0,190.97,13.12656725]
[1738861739214,0.03531751,191.01,190.97,13.12656725]
[1738861739413,5.2345,191.0,190.97,13.12656725]
[1738861739914,0.03531751,191.01,190.97,13.12656725]
[1738861740316,5.2348,190.98,190.97,13.12656725]
[1738861741711,5.2357,190.95,190.87,6.8247]
[1738861742010,19.03725035,190.95,190.86,3.1733]
[1738861742215,19.03725035,190.95,190.86,1.5743]
[1738861742519,5.2375,190.88,190.86,1.5743]
[1738861742711,19.03725035,190.95,190.8,1.5918]
[1738861743013,5.2376,190.88,190.85,0.03381527]
[1738861743318,0.03797264,190.89,190.85,0.03381527]
[1738861743815,5.2381,190.86,190.85,0.03381527]
[1738861744607,9.4981,190.86,190.85,0.03381527]
[1738861744814,28.53535035,190.86,190.85,0.03381527]
[1738861745116,5.2399,190.8,190.76,1.632]
[1738861745317,5.2399,190.8,190.74,3.2725]
[1738861745318,23.29725035,190.86,190.74,3.2725]
[1738861745516,5.2391,190.83,190.78,5.2403]
[1738861745714,23.29725035,190.86,190.74,3.2725]
[1738861746313,5.2401,190.79,190.78,0.03435725]
[1738861746716,0.036214,190.82,190.78,0.03435725]
[1738861747011,5.24,190.8,190.78,0.03435725]
[1738861747216,0.036214,190.82,190.78,0.03435725]
[1738861747616,5.275414,190.82,190.78,0.03435725]
[1738861747817,0.036214,190.82,190.78,0.03435725]
[1738861748713,5.24,190.79,190.78,0.03435725]
[1738861749814,5.24,190.79,190.64,19.03725035]
[1738861750121,19.03725035,190.8,190.65,1.5942]
[1738861750620,19.03725035,190.8,190.7,5.2422]
[1738861751018,19.03725035,190.8,190.65,1.5942]
[1738861751223,0.03431705,190.77,190.73,0.04021829]
[1738861752023,5.2414,190.74,190.73,0.04021829]
[1738861756319,1.57631705,190.77,190.73,0.04021829]
[1738861756520,0.03431705,190.77,190.73,0.04021829]
[1738861756914,5.241,190.76,190.73,0.04021829]
[1738861757327,0.03431705,190.77,190.73,0.04021829]
[1738861757527,5.2411,190.75,190.73,0.04021829]
[1738861757825,0.03431705,190.77,190.73,0.04021829]
[1738861758226,5.27511705,190.77,190.73,0.04021829]
[1738861758523,0.03431705,190.77,190.73,19.07746864]
[1738861758720,1.6783,190.88,190.76,19.03725035]
[1738861759121,1.6783,190.88,190.85,5.2]
[1738861759327,5.8798,190.89,190.85,5.2]
[1738861759627,4.26,190.89,190.85,5.2]
[1738861759929,5.2381,190.86,190.85,5.23649349]
[1738861761227,4.29431157,190.89,190.85,5.23649349]
[1738861761423,5.2376,190.88,190.85,5.23649349]
[1738861761617,0.03431157,190.89,190.85,5.23649349]
[1738861762022,5.2381,190.86,190.85,5.23649349]
[1738861762423,5.2381,190.86,190.85,9.349e-05]
[1738861763223,24.27535035,190.86,190.85,9.349e-05]
[1738861763926,25.24064027,190.86,190.67,19.03725035]
[1738861764126,1.5985,190.85,190.67,19.03725035]
[1738861764526,1.5985,190.85,190.7,19.03725035]
[1738861764527,1.5753,190.84,190.7,19.03725035]
[1738861765033,0.03518079,190.8,190.76,0.03347524]
[1738861765922,0.03518079,190.8,190.79,5.24]
[1738861766127,8.079e-05,190.8,190.79,5.24]
[1738861766324,8.079e-05,190.8,190.79,24.27725035]
[1738861766633,5.9442,190.93,190.82,19.03725035]
[1738861767031,5.9442,190.93,190.79,19.03725035]
[1738861767434,5.237,190.9,190.79,19.03725035]
[1738861767637,0.03740968,190.88,190.84,0.03876753]
[1738861768432,5.2381,190.86,190.84,0.03876753]
[1738861769632,0.03740968,190.88,190.84,0.03876753]
[1738861769841,5.2384,190.85,190.84,0.03876753]
[1738861770543,5.2384,190.85,190.84,6.753e-05]
[1738861770839,5.2406,190.77,190.67,19.03725035]
[1738861771039,23.29725035,190.81,190.7,5.2422]
[1738861771239,5.2418,190.73,190.68,1.5852]
[1738861771638,19.03725035,190.78,190.68,1.5852]
[1738861771838,0.03475851,190.72,190.69,0.03890666]
[1738861772943,5.2425,190.7,190.69,0.03890666]
[1738861774449,5.2425,190.7,190.69,6.66e-06]
[1738861774450,10.4875,190.7,190.69,6.66e-06]
[1738861774747,5.2442,190.64,190.6,1.6321]
[1738861775047,19.03725035,190.69,190.6,1.6321]
[1738861775948,0.03746684,190.66,190.63,0.03583304]
[1738861776848,5.28106684,190.66,190.63,0.03583304]
[1738861777948,0.03746684,190.66,190.63,0.03583304]
[1738861778147,5.2441,190.64,190.63,0.03583304]
[1738861778744,0.03746684,190.66,190.63,0.03583304]
[1738861779451,5.2441,190.64,190.63,0.03583304]
[1738861780046,1.6381,190.65,190.51,3.2765]
[1738861780246,19.03725035,190.63,190.51,1.5981]
[1738861780544,19.03725035,190.6,190.51,1.5981]
[1738861780749,19.03725035,190.6,190.48,1.5331]
[1738861780953,19.03725035,190.6,190.46,1.6784]
[1738861781150,5.2465,190.56,190.47,1.5712]
[1738861781347,0.03911454,190.56,190.52,0.03912831]
[1738861781550,0.03911454,190.56,190.52,5.28632831]
[1738861783154,0.03911454,190.56,190.54,5.2468]
[1738861783349,0.03911454,190.56,190.52,0.03912831]
[1738861784051,0.03911454,190.56,190.55,5.2466]
[1738861785053,0.03911454,190.56,190.52,0.03912831]
[1738861785545,0.03911454,190.56,190.53,5.2471]
[1738861785956,0.03911454,190.56,190.54,5.2468]
[1738861786146,0.03911454,190.56,190.52,0.03912831]
[1738861786553,0.03911454,190.56,190.54,5.2467]
[1738861786851,0.03911454,190.56,190.52,0.03912831]
[1738861787054,1.454e-05,190.56,190.55,5.2466]
[1738861790352,1.454e-05,190.56,190.52,0.03912831]
[1738861791054,1.454e-05,190.56,190.55,5.2466]
[1738861791757,1.454e-05,190.56,190.53,5.247]
[1738861791957,1.454e-05,190.56,190.52,0.03912831]
[1738861792356,1.454e-05,190.56,190.52,5.28632831]
[1738861792655,1.454e-05,190.56,190.52,0.03912831]
[1738861792853,5.2467,190.55,190.52,5.28652831]
[1738861793153,1.454e-05,190.56,190.52,0.03912831]
[1738861794762,5.2469,190.55,190.52,0.03912831]
[1738861795061,1.454e-05,190.56,190.52,0.03912831]
[1738861795364,1.683,190.55,190.52,0.03912831]
[1738861796063,5.2472,190.53,190.52,0.03912831]
[1738861796962,5.2488,190.48,190.41,4.8875]
[1738861797663,19.03725035,190.51,190.41,3.3448]
[1738861797862,5.2483,190.49,190.35,20.59875035]
[1738861798167,0.03625424,190.48,190.45,5.2492]
[1738861798355,5.2483,190.49,190.45,5.2492]
[1738861798561,0.03736594,190.48,190.45,0.03967546]
[1738861799265,6.594e-05,190.48,190.47,5.2488]
[1738861800660,6.594e-05,190.48,190.47,24.28605035]
[1738861800859,6.594e-05,190.48,190.47,5.2488]
[1738861802358,6.594e-05,190.48,190.45,4.96727546]
[1738861802562,6.594e-05,190.48,190.45,0.03967546]
[1738861802762,5.249,190.47,190.45,0.03967546]
[1738861803065,6.594e-05,190.48,190.45,0.03967546]
[1738861803361,19.03725035,190.46,190.31,3.3586]
[1738861803564,19.03725035,190.46,190.32,1.6566]
[1738861804065,5.2502,190.42,190.37,5.2516]
[1738861804267,19.03725035,190.5,190.33,19.03725035]
[1738861804665,0.03593542,190.43,190.4,0.0339922]
[1738861804967,19.03725035,190.5,190.4,0.0339922]
[1738861805166,0.03371213,190.43,190.4,0.0339922]
[1738861805368,19.03725035,190.45,190.4,0.0339922]
[1738861805566,0.03974172,190.43,190.4,0.0339922]
[1738861805765,5.28974172,190.43,190.4,0.0339922]
[1738861805962,0.03974172,190.43,190.4,0.0339922]
[1738861806267,0.03974172,190.43,190.41,5.2505]
[1738861806863,0.03974172,190.43,190.4,0.0339922]
[1738861807059,0.03974172,190.43,190.42,5.2502]
[1738861807462,4.172e-05,190.43,190.42,5.2502]
[1738861807868,1.6135,190.57,190.51,5.2477]
[1738861808164,4.26,190.56,190.43,1.6776]
[1738861808370,4.26,190.56,190.48,5.2484]
[1738861809067,0.04016451,190.54,190.5,5.28829451]
[1738861809770,0.04016451,190.54,190.51,5.2474]
[1738861810467,0.04016451,190.54,190.5,0.04039451]
[1738861810668,0.04016451,190.54,190.5,5.28839451]
[1738861811566,0.04016451,190.54,190.5,0.04039451]
[1738861811867,5.2488,190.48,190.4,1.5975]
[1738861812172,30.94998929,190.49,190.33,62.90232564]
[1738861812469,1.5654,190.48,190.33,62.90232564]
[1738861812669,5.2496,190.45,190.4,5.2506]
[1738861812968,0.03905162,190.42,190.39,0.03589123]
[1738861814468,0.03905162,190.42,190.39,5.28689123]
[1738861815070,0.03905162,190.42,190.39,0.03589123]
[1738861815668,0.03905162,190.42,190.4,5.2507]
[1738861816570,0.03905162,190.42,190.39,0.03589123]
[1738861817473,5.28925162,190.42,190.39,0.03589123]
[1738861818074,0.03905162,190.42,190.39,0.03589123]
[1738861819577,0.03905162,190.42,190.41,5.2505]
[1738861819976,0.03905162,190.42,190.39,0.03589123]
[1738861820173,0.03905162,190.42,190.4,5.2507]
[1738861820665,0.03905162,190.42,190.39,0.03589123]
[1738861821577,5.28945162,190.42,190.39,0.03589123]
[1738861822474,0.03905162,190.42,190.39,0.03589123]
[1738861822674,5.2507,190.4,190.39,0.03589123]
[1738861824078,0.03905162,190.42,190.39,0.03589123]
[1738861824579,5.28925162,190.42,190.39,5.28689123]
[1738861824781,5.28925162,190.42,190.39,0.03589123]
[1738861825170,0.03905162,190.42,190.41,5.2505]
[1738861826274,5.162e-05,190.42,190.41,5.2505]
[1738861832583,5.162e-05,190.42,190.41,24.29806489]
[1738861834885,1.5654,190.48,190.47,5.2488]
[1738861835088,6.8979,190.54,190.41,19.04756489]
[1738861835290,5.2469,190.54,190.51,5.2477]
[1738861835585,3.356,190.56,190.44,19.04756489]
[1738861835779,191.9079,190.61,190.44,19.04756489]
[1738861835984,7.784e-05,190.52,190.48,0.03661791]
[1738861836284,1.6677,190.59,190.47,19.04756489]
[1738861836482,1.6677,190.59,190.5,5.2478]
[1738861836683,1.5488,190.6,190.5,5.2478]
[1738861836684,5.2455,190.6,190.5,19.04756489]
[1738861836880,1.5783,190.61,190.47,19.04756489]
[1738861837186,5.247,190.54,190.52,0.0390476]
[1738861837688,0.0397329,190.56,190.52,0.0390476]
[1738861837884,5.2472,190.53,190.52,0.0390476]
[1738861842087,5.2861329,190.56,190.52,0.0390476]
[1738861842295,0.0397329,190.56,190.52,0.0390476]
[1738861843787,5.2468,190.55,190.52,0.0390476]
[1738861843990,0.0397329,190.56,190.52,0.0390476]
[1738861844491,5.2467,190.55,190.52,0.0390476]
[1738861844991,0.0397329,190.56,190.52,0.0390476]
[1738861846190,5.2471,190.54,190.52,0.0390476]
[1738861847393,5.2472,190.53,190.52,0.0390476]
[1738861849502,19.04756489,190.55,190.38,19.04756489]
[1738861849503,5.2486,190.48,190.38,19.04756489]
[1738861849698,5.2486,190.48,190.34,57.48569496]
[1738861849699,19.04756489,190.49,190.35,47.80690124]
[1738861849896,19.04756489,190.49,190.43,5.2498]
[1738861850698,0.03468542,190.48,190.44,0.03678696]
[1738861850895,5.2488,190.47,190.44,0.03678696]
[1738861851194,0.03468542,190.48,190.44,0.03678696]
[1738861851400,5.2492,190.46,190.44,0.03678696]
[1738861851789,0.03468542,190.48,190.44,0.03678696]
[1738861854199,0.03468542,190.48,190.44,4.25678696]
[1738861855208,5.2489,190.47,190.44,4.25678696]
[1738861855399,0.03468542,190.48,190.44,4.25678696]
[1738861855802,5.2494,190.45,190.44,4.25678696]
[1738861856505,5.2489,190.47,190.44,4.25678696]
[1738861858706,0.03468542,190.48,190.44,4.25678696]
[1738861858908,5.2493,190.46,190.44,4.25678696]
[1738861859603,5.2494,190.45,190.44,4.25678696]
[1738861862902,11.91253856,190.46,190.31,11.91253856]
[1738861863107,11.91253856,190.41,190.3,90.82973359]
[1738861863604,11.91253856,190.41,190.31,3.3362]
[1738861863802,11.91253856,190.38,190.31,3.3362]
[1738861864007,0.03332583,190.36,190.31,3.3362]
[1738861864204,0.03332583,190.36,190.33,0.03849758]
[1738861864710,5.28542583,190.36,190.33,0.03849758]
[1738861865311,0.03332583,190.36,190.33,0.03849758]
[1738861865806,5.2524,190.34,190.33,0.03849758]
[1738861866010,0.03332583,190.36,190.33,0.03849758]
[1738861866409,0.03332583,190.36,190.35,5.2521]
[1738861866618,0.03332583,190.36,190.33,0.03849758]
[1738861867003,0.03332583,190.36,190.34,5.2524]
[1738861867308,0.03332583,190.36,190.33,0.03849758]
[1738861867910,5.2524,190.34,190.33,0.03849758]
[1738861869411,5.2535,190.3,190.29,1.5322]
[1738861869910,19.08189147,190.34,190.29,1.5322]
[1738861870415,19.08189147,190.34,190.26,3.3362]
[1738861870611,0.03410523,190.33,190.3,0.03937965]
[1738861871312,5.2532,190.31,190.3,0.03937965]
[1738861871613,0.03410523,190.33,190.3,0.03937965]
[1738861872009,5.23e-06,190.33,190.32,5.2529]
[1738861874520,4.26,190.45,190.3,19.12127112]
[1738861875021,4.26,190.45,190.3,19.08189147]
[1738861875825,0.0402225,190.39,190.36,0.03335794]
[1738861876120,0.0402225,190.39,190.36,19.11524941]
[1738861876121,2.25e-05,190.39,190.36,19.11524941]
[1738861876324,1.6176,190.51,190.37,4.8768]
[1738861876526,1.6176,190.51,190.39,19.08189147]
[1738861876823,11.44661241,190.53,190.39,19.08189147]
[1738861877026,19.08189147,190.52,190.37,4.8768]
[1738861877317,5.2483,190.49,190.44,5.2495]
[1738861877525,0.03584686,190.46,190.43,0.03978757]
[1738861878019,4.686e-05,190.46,190.45,5.2491]
[1738861878225,4.686e-05,190.46,190.45,24.33099147]
[1738861878422,28.86736341,190.56,190.55,5.2466]
[1738861878623,28.86736341,190.56,190.46,4.9225]
[1738861879630,28.86736341,190.56,190.53,5.247]
[1738861879924,28.86736341,190.56,190.49,0.03882877]
[1738861880121,28.90439922,190.56,190.49,0.03882877]
[1738861880323,5.2469,190.55,190.5,5.248]
[1738861880525,0.03703581,190.56,190.49,0.03882877]
[1738861881420,19.08189147,190.54,190.49,0.03882877]
[1738861881643,19.08189147,190.51,190.49,0.03882877]
[1738861882025,24.32959147,190.51,190.49,0.03882877]
[1738861882221,23.32189147,190.51,190.33,47.84122782]
[1738861882529,19.08189147,190.47,190.42,5.2499]
[1738861882725,19.08189147,190.5,190.37,3.2211]
[1738861883322,0.03908014,190.45,190.37,3.2211]
[1738861883525,0.03908014,190.45,190.42,0.03950124]
[1738861883828,5.2502,190.43,190.42,0.03950124]
[1738861886032,0.03908014,190.45,190.42,0.03950124]
[1738861886428,0.03908014,190.45,190.43,5.2498]
[1738861886625,0.03908014,190.45,190.42,0.03950124]
[1738861887131,0.03908014,190.45,190.44,5.2496]
[1738861887629,0.03908014,190.45,190.42,0.03950124]
[1738861888727,5.28848014,190.45,190.42,0.03950124]
[1738861890935,0.03908014,190.45,190.42,0.03950124]
[1738861891134,0.03908014,190.45,190.42,5.28950124]
[1738861892932,0.03908014,190.45,190.42,0.03950124]
[1738861893136,5.2499,190.43,190.42,0.03950124]
[1738861893928,5.2513,190.38,190.37,3.2211]
[1738861895234,5.2513,190.38,190.36,0.0363769]
[1738861895439,5.2516,190.37,190.36,0.0363769]
[1738861897142,24.33349147,190.37,190.36,0.0363769]
[1738861898036,0.03543135,190.39,190.36,0.0363769]
[1738861898334,5.2513,190.38,190.36,0.0363769]
[1738861898534,0.03543135,190.39,190.36,0.0363769]
[1738861899739,0.03543135,190.39,190.38,5.2513]
[1738861900136,0.03543135,190.39,190.36,0.0363769]
[1738861900838,5.2513,190.38,190.36,0.0363769]
[1738861901139,0.03543135,190.39,190.36,0.0363769]
[1738861901333,5.2516,190.37,190.36,0.0363769]
[1738861902639,19.08189147,190.37,190.27,3.2073]
[1738861902941,5.2529,190.33,190.27,1.5516]
[1738861903241,5.2529,190.33,190.21,19.08189147]
[1738861903445,19.08189147,190.37,190.24,3.1709]
[1738861903740,5.253,190.32,190.21,19.08189147]
[1738861903941,0.0374721,190.32,190.29,0.03564438]
[1738861904137,5.2532,190.31,190.24,5.255]
[1738861904344,0.0374721,190.32,190.29,0.03628727]
[1738861904636,5.2541,190.28,190.22,1.5516]
[1738861904841,0.0374721,190.32,190.29,0.03830977]
[1738861905038,19.08189147,190.34,190.24,1.5516]
[1738861905237,0.03696265,190.25,190.2,1.6588]
[1738861905439,19.08189147,190.34,190.27,0.04002797]
[1738861905639,19.08189147,190.34,190.25,5.2548]
[1738861905942,5.2535,190.3,190.29,0.03824322]
[1738861908145,0.0378932,190.32,190.29,0.03824322]
[1738861908846,5.2908932,190.32,190.29,0.03824322]
[1738861910948,5.2532,190.31,190.29,0.03824322]
[1738861911247,11.93129258,190.3,190.29,0.03824322]
[1738861911650,17.18479258,190.3,190.29,0.03824322]
[1738861914456,5.2542,190.28,190.24,5.2549]
[1738861914648,11.93129258,190.27,190.24,5.2549]
[1738861915149,11.93129258,190.27,190.15,11.93129258]
[1738861915548,17.18669258,190.24,190.2,5.2561]
[1738861915749,0.03430517,190.23,190.2,5.2561]
[1738861916249,5.28980517,190.23,190.2,5.2561]
[1738861916555,0.03430517,190.23,190.19,0.03393024]
[1738861917057,0.03430517,190.23,190.22,5.2557]
[1738861917261,0.03430517,190.23,190.19,0.03393024]
[1738861917659,0.03430517,190.23,190.21,5.2559]
[1738861919464,0.03430517,190.23,190.2,5.2562]
[1738861919658,5.28970517,190.23,190.2,5.2562]
[1738861920358,0.03430517,190.23,190.22,5.2557]
[1738861921766,0.03430517,190.23,190.21,5.256]
[1738861922261,5.2563,190.2,190.19,0.03393024]
[1738861922459,11.93129258,190.21,190.19,0.03393024]
[1738861923060,17.18749258,190.21,190.19,0.03393024]
[1738861923261,11.93129258,190.21,190.19,0.03393024]
[1738861924362,5.2563,190.2,190.19,0.03393024]
[1738861925065,5.2574,190.16,190.06,11.93129258]
[1738861925665,5.2583,190.13,190.09,5.2592]
[1738861925859,11.93129258,190.15,190.03,19.18148416]
[1738861926262,0.03915747,190.11,190.09,5.259]
[1738861926463,0.03915747,190.11,190.07,0.03570603]
[1738861928163,5.2593,190.1,190.07,0.03570603]
[1738861928468,0.03915747,190.11,190.07,0.03570603]
[1738861928868,5.2593,190.1,190.07,0.03570603]
[1738861929063,0.03915747,190.11,190.07,0.03570603]
[1738861929265,11.93129258,190.09,190.07,0.03570603]
[1738861929468,5.2596,190.08,190.07,0.03570603]
[1738861930764,11.93129258,190.09,190.07,0.03570603]
[1738861931266,0.03915747,190.11,190.07,0.03570603]
[1738861932361,0.03915747,190.11,190.08,5.2593]
[1738861932561,0.03915747,190.11,190.07,0.03570603]
[1738861933567,0.03915747,190.11,190.08,5.2596]
[1738861933764,0.03915747,190.11,190.07,0.03570603]
[1738861934175,0.03915747,190.11,190.1,5.259]
[1738861934970,0.03915747,190.11,190.08,5.2594]
[1738861935170,0.03915747,190.11,190.07,0.03570603]
[1738861935578,17.19069258,190.09,190.07,0.03570603]
[1738861936377,11.93129258,190.09,190.07,0.03570603]
[1738861937079,0.03915747,190.11,190.07,0.03570603]
[1738861937577,0.03915747,190.11,190.09,5.2591]
[1738861937976,0.03915747,190.11,190.07,0.03570603]
[1738861938277,0.03915747,190.11,190.1,5.259]
[1738861938481,5.747e-05,190.11,190.1,5.259]
[1738861938670,5.747e-05,190.11,190.1,17.19029258]
[1738861939077,5.747e-05,190.11,190.1,5.259]
[1738861944379,5.747e-05,190.11,190.1,17.19029258]
[1738861945477,4.7616,190.17,190.1,17.19029258]
[1738861945478,4.7616,190.17,190.16,5.2574]
[1738861946181,11.93129258,190.24,190.22,5.2556]
[1738861946383,5.2547,190.26,190.22,5.2556]
[1738861946684,5.2547,190.26,190.1,11.93129258]
[1738861946685,11.93129258,190.27,190.24,5.2551]